fUSD/lending_fUSD_20250112
["ID","MTS","AMOUNT","RATE_DAILY","PERIOD"]
[348588228,1736645445282,-500.0,9.999e-05,2]
[348588229,1736645445291,-500.0,9.999e-05,2]
[348588230,1736645445302,-366.90543071,9.999e-05,2]
[348588231,1736645445312,-500.0,9.999e-05,2]
[348588232,1736645445322,-500.0,9.999e-05,2]
[348588233,1736645445332,-337.39046036,9.999e-05,2]
[348588234,1736645445341,-500.0,9.999e-05,2]
[348588235,1736645445351,-500.0,9.999e-05,2]
[348588236,1736645445362,-500.0,9.999e-05,2]
[348588237,1736645445372,-500.0,9.999e-05,2]
[348588238,1736645445382,-500.0,9.999e-05,2]
[348588239,1736645445391,-500.0,9.999e-05,2]
[348588240,1736645445401,-500.0,9.999e-05,2]
[348588241,1736645445412,-500.0,9.999e-05,2]
[348588242,1736645445423,-500.0,9.999e-05,2]
[348588243,1736645445433,-500.0,9.999e-05,2]
[348588244,1736645445442,-500.0,9.999e-05,2]
[348588245,1736645445453,-500.0,9.999e-05,2]
[348588246,1736645445464,-500.0,9.999e-05,2]
[348588247,1736645445654,-500.0,9.999e-05,2]
[348588248,1736645445663,-500.0,9.999e-05,2]
[348588249,1736645445673,-500.0,9.999e-05,2]
[348588250,1736645445682,-500.0,9.999e-05,2]
[348588251,1736645445692,-500.0,9.999e-05,2]
[348588252,1736645445701,-500.0,9.999e-05,2]
[348588253,1736645445710,-505.97515746,9.999e-05,2]
[348588254,1736645445719,-507.64647025,9.999e-05,2]
[348588255,1736645445728,-500.0,9.999e-05,2]
[348588256,1736645445738,-500.0,9.999e-05,2]
[348588257,1736645445747,-500.0,9.999e-05,2]
[348588258,1736645445758,-500.0,9.999e-05,2]
[348588259,1736645445767,-500.0,9.999e-05,2]
[348588260,1736645445776,-500.0,9.999e-05,2]
[348588261,1736645445785,-500.0,9.999e-05,2]
[348588262,1736645445794,-500.0,9.999e-05,2]
[348588263,1736645445803,-500.0,9.999e-05,2]
[348588264,1736645445812,-500.0,9.999e-05,2]
[348588265,1736645445821,-546.36232796,9.999e-05,2]
[348588266,1736645445831,-500.0,9.999e-05,2]
[348588267,1736645445841,-500.0,9.999e-05,2]
[348588268,1736645445850,-500.0,9.999e-05,2]
[348588269,1736645445859,-500.0,9.999e-05,2]
[348588270,1736645445868,-500.0,9.999e-05,2]
[348588271,1736645445877,-500.0,9.999e-05,2]
[348588272,1736645445886,-500.0,9.999e-05,2]
[348588273,1736645445895,-500.0,9.999e-05,2]
[348588274,1736645445904,-500.0,9.999e-05,2]
[348588275,1736645445913,-500.0,9.999e-05,2]
[348588276,1736645445922,-500.0,9.999e-05,2]
[348588277,1736645445931,-500.0,9.999e-05,2]
[348588278,1736645445940,-500.0,9.999e-05,2]
[348588279,1736645445949,-500.0,9.999e-05,2]
[348588280,1736645445958,-500.0,9.999e-05,2]
[348588281,1736645445968,-500.0,9.999e-05,2]
[348588282,1736645445977,-500.0,9.999e-05,2]
[348588283,1736645445986,-500.0,9.999e-05,2]
[348588286,1736645445994,-500.0,9.999e-05,2]
[348588287,1736645446004,-500.0,9.999e-05,2]
[348588288,1736645446016,-500.0,9.999e-05,2]
[348588289,1736645446025,-500.0,9.999e-05,2]
[348588290,1736645446034,-500.0,9.999e-05,2]
[348588291,1736645446043,-500.0,9.999e-05,2]
[348588292,1736645446052,-500.0,9.999e-05,2]
[348588293,1736645446061,-500.0,9.999e-05,2]
[348588294,1736645446070,-500.0,9.999e-05,2]
[348588295,1736645446079,-500.0,9.999e-05,2]
[348588296,1736645446089,-500.0,9.999e-05,2]
[348588297,1736645446098,-530.34777333,9.999e-05,2]
[348588298,1736645446108,-500.0,9.999e-05,2]
[348588299,1736645446117,-500.0,9.999e-05,2]
[348588300,1736645446127,-500.0,9.999e-05,2]
[348588301,1736645446137,-500.0,9.999e-05,2]
[348588302,1736645446148,-500.0,9.999e-05,2]
[348588303,1736645446158,-500.0,9.999e-05,2]
[348588304,1736645446167,-500.0,9.999e-05,2]
[348588305,1736645446176,-500.0,9.999e-05,2]
[348588306,1736645446185,-500.0,9.999e-05,2]
[348588307,1736645446194,-500.0,9.999e-05,2]
[348588308,1736645446203,-500.0,9.999e-05,2]
[348588309,1736645446212,-318.7299232,9.999e-05,2]
[348588310,1736645446221,-500.0,9.999e-05,2]
[348588311,1736645446230,-500.0,9.999e-05,2]
[348588312,1736645446239,-500.0,9.999e-05,2]
[348588313,1736645446248,-500.0,9.999e-05,2]
[348588314,1736645446258,-500.0,9.999e-05,2]
[348588315,1736645446267,-615.65,9.999e-05,2]
[348588316,1736645446276,-500.0,9.999e-05,2]
[348588317,1736645446285,-500.0,9.999e-05,2]
[348588318,1736645446294,-159.6907968,9.999e-05,2]
[348588319,1736645446303,-504.25552189,9.999e-05,2]
[348588320,1736645446312,-500.0,9.999e-05,2]
[348588321,1736645446321,-500.0,9.999e-05,2]
[348588322,1736645446331,-500.0,9.999e-05,2]
[348588323,1736645446340,-500.0,9.999e-05,2]
[348588324,1736645446350,-500.0,9.999e-05,2]
[348588325,1736645446359,-500.0,9.999e-05,2]
[348588326,1736645446368,-500.0,9.999e-05,2]
[348588327,1736645446377,-500.0,9.999e-05,2]
[348588328,1736645446386,-399.46130557,9.999e-05,2]
[348588329,1736645446395,-500.0,9.999e-05,2]
[348588331,1736645446405,-500.0,9.999e-05,2]
[348588332,1736645446415,-503.82072804,9.999e-05,2]
[348588333,1736645446424,-500.0,9.999e-05,2]
[348588334,1736645446433,-525.97129377,9.999e-05,2]
[348588335,1736645446442,-500.0,9.999e-05,2]
[348588336,1736645446451,-500.0,9.999e-05,2]
[348588337,1736645446460,-676.0,0.0001,2]
[348588338,1736645446470,-29263.41743273,0.0001,2]
[348588339,1736645446484,-36180.00128,0.0001,2]
[348588340,1736645446504,-779147.28117316,0.0001,2]
[348588341,1736645446528,-956.75,0.0001,2]
[348588342,1736645446540,-374.3932334,0.0001,2]
[348588344,1736645446962,552.55,8.219e-05,2]
[348588345,1736645446981,-766.45813007,0.0001,2]
[348588346,1736645446992,-314.90605249,0.0001,2]
[348588347,1736645447012,-181718.30811139,0.0001,2]
[348588348,1736645447023,-5030.98199,0.0001,2]
[348588350,1736645468786,500.0,8.464e-05,2]
[348588351,1736645469648,500.0,8.464e-05,2]
[348588354,1736645930851,323.0,0.0002,120]
[348588375,1736646632454,-250.0,8.67e-05,2]
[348588376,1736646632464,-862.14,8.672e-05,2]
[348588377,1736646632476,-1085.6,8.672e-05,2]
[348588378,1736646632486,-453.24,8.728e-05,2]
[348588379,1736646632495,-222.09,8.77e-05,2]
[348588380,1736646632505,-1000.0,8.874e-05,2]
[348588381,1736646632515,-216.82829579,8.938e-05,2]
[348588382,1736646632524,-167.12,8.938e-05,2]
[348588383,1736646632534,-150.0,8.959e-05,2]
[348588384,1736646632543,-455.4,8.964e-05,2]
[348588385,1736646632552,-250.0,8.966e-05,2]
[348588386,1736646632562,-240.49,8.966e-05,2]
[348588387,1736646632571,-250.0,8.969e-05,2]
[348588388,1736646632580,-8802.66943889,8.98e-05,2]
[348588389,1736646632592,-4831.08866031,8.98e-05,2]
[348588390,1736646632635,-4402.23977636,8.98e-05,2]
[348588391,1736646632647,-1089.69,8.98e-05,2]
[348588392,1736646632657,-1050.56099037,8.98e-05,2]
[348588393,1736646632669,-255.855,8.98e-05,2]
[348588394,1736646632681,-3467.89613407,8.98e-05,2]
[348588395,1736646632690,-150.0,9.075e-05,2]
[348588396,1736646632699,-299.99,9.076e-05,2]
[348588397,1736646632708,-1311.77,9.076e-05,2]
[348588398,1736646632719,-4651.0,9.076e-05,2]
[348588399,1736646632729,-1849.44806989,9.076e-05,2]
[348588400,1736646632807,-2499.96256852,9.076e-05,2]
[348588401,1736646632818,-1167.36936159,9.076e-05,2]
[348588402,1736646632827,-7418.52,9.076e-05,2]
[348588403,1736646632837,-3194.03,9.076e-05,2]
[348588404,1736646632847,-168.13,9.098e-05,2]
[348588405,1736646632856,-150.0,9.315e-05,2]
[348588406,1736646632866,-150.0,9.315e-05,2]
[348588407,1736646632876,-178.133,9.5e-05,2]
[348588408,1736646632886,-151.53,9.5e-05,2]
[348588409,1736646632895,-301.08,9.5e-05,2]
[348588410,1736646632905,-990.3,9.5e-05,2]
[348588411,1736646632914,-150.76,9.5e-05,2]
[348588412,1736646632923,-893.78,9.5e-05,2]
[348588413,1736646632932,-460.3342,9.731e-05,2]
[348588414,1736646632943,-1000.0,9.731e-05,2]
[348588415,1736646632953,-284.71925189,9.8e-05,2]
[348588416,1736646632962,-239.98119292,9.85e-05,2]
[348588417,1736646632971,-1978.0154,9.884e-05,2]
[348588418,1736646632980,-526.4494,9.884e-05,2]
[348588419,1736646632989,-299.1172,9.884e-05,2]
[348588420,1736646632998,-5000.0,9.886e-05,2]
[348588421,1736646633007,-91762.54,9.9e-05,2]
[348588422,1736646633016,-1058.0,9.912e-05,2]
[348588423,1736646633025,-319.59002556,9.921e-05,2]
[348588424,1736646633035,-501.1603828,9.973e-05,2]
[348588425,1736646633048,-1000.0,9.983e-05,2]
[348588426,1736646633059,-255.0,9.983e-05,2]
[348588428,1736646633068,-500.0,9.983e-05,2]
[348588430,1736646633077,-2202.61,9.983e-05,2]
[348588431,1736646633087,-2584.26,9.983e-05,2]
[348588432,1736646633096,-1829.73,9.983e-05,2]
[348588433,1736646633105,-500.0,9.983e-05,2]
[348588434,1736646633115,-1088.62,9.983e-05,2]
[348588435,1736646633124,-3024.74,9.983e-05,2]
[348588436,1736646633134,-809.05,9.983e-05,2]
[348588437,1736646633144,-500.0,9.983e-05,2]
[348588438,1736646633153,-500.0,9.983e-05,2]
[348588439,1736646633163,-1034.53,9.983e-05,2]
[348588440,1736646633173,-504.05086641,9.983e-05,2]
[348588441,1736646633191,-500.0,9.983e-05,2]
[348588442,1736646633202,-1495.48,9.983e-05,2]
[348588443,1736646633212,-2106.6,9.983e-05,2]
[348588444,1736646633222,-1192.31,9.983e-05,2]
[348588445,1736646633231,-500.0,9.983e-05,2]
[348588446,1736646633241,-500.0,9.983e-05,2]
[348588447,1736646633251,-500.0,9.983e-05,2]
[348588448,1736646633260,-500.0,9.983e-05,2]
[348588449,1736646633270,-505.45983556,9.984e-05,2]
[348588450,1736646633280,-500.0,9.984e-05,2]
[348588451,1736646633290,-500.0,9.984e-05,2]
[348588452,1736646633299,-500.0,9.984e-05,2]
[348588453,1736646633309,-246.02290443,9.984e-05,2]
[348588454,1736646633318,-500.0,9.984e-05,2]
[348588455,1736646633328,-500.0,9.984e-05,2]
[348588456,1736646633338,-500.0,9.984e-05,2]
[348588457,1736646633347,-500.0,9.984e-05,2]
[348588458,1736646633356,-500.0,9.984e-05,2]
[348588459,1736646633366,-500.0,9.984e-05,2]
[348588460,1736646633376,-501.89945558,9.984e-05,2]
[348588461,1736646633386,-500.0,9.984e-05,2]
[348588462,1736646633395,-500.0,9.984e-05,2]
[348588463,1736646633405,-504.41293232,9.984e-05,2]
[348588464,1736646633416,-612.58101723,9.984e-05,2]
[348588465,1736646633426,-500.0,9.984e-05,2]
[348588466,1736646633435,-500.0,9.984e-05,2]
[348588467,1736646633445,-500.0,9.984e-05,2]
[348588468,1736646633455,-500.0,9.984e-05,2]
[348588469,1736646633465,-500.0,9.984e-05,2]
[348588470,1736646633475,-500.0,9.984e-05,2]
[348588471,1736646633484,-500.0,9.984e-05,2]
[348588472,1736646633494,-500.0,9.984e-05,2]
[348588473,1736646633503,-510.70462465,9.984e-05,2]
[348588474,1736646633512,-500.0,9.984e-05,2]
[348588475,1736646633522,-502.62003377,9.984e-05,2]
[348588476,1736646633531,-500.0,9.984e-05,2]
[348588477,1736646633540,-500.0,9.984e-05,2]
[348588478,1736646633550,-509.37480861,9.984e-05,2]
[348588479,1736646633560,-501.90147352,9.984e-05,2]
[348588480,1736646633569,-500.0,9.984e-05,2]
[348588481,1736646633579,-500.0,9.984e-05,2]
[348588482,1736646633589,-500.0,9.984e-05,2]
[348588483,1736646633598,-500.0,9.984e-05,2]
[348588484,1736646633608,-500.0,9.984e-05,2]
[348588485,1736646633618,-500.0,9.984e-05,2]
[348588486,1736646633628,-503.27797323,9.984e-05,2]
[348588487,1736646633638,-504.3378675,9.984e-05,2]
[348588488,1736646633648,-503.00779022,9.984e-05,2]
[348588489,1736646633658,-503.85385716,9.984e-05,2]
[348588490,1736646633668,-500.0,9.984e-05,2]
[348588491,1736646633677,-500.0,9.984e-05,2]
[348588492,1736646633687,-504.18325155,9.984e-05,2]
[348588493,1736646633697,-503.94920092,9.984e-05,2]
[348588494,1736646633706,-500.0,9.984e-05,2]
[348588495,1736646633715,-500.0,9.984e-05,2]
[348588496,1736646633725,-500.0,9.984e-05,2]
[348588497,1736646633735,-500.0,9.984e-05,2]
[348588498,1736646633745,-500.0,9.984e-05,2]
[348588499,1736646633755,-500.0,9.984e-05,2]
[348588500,1736646633764,-500.0,9.984e-05,2]
[348588501,1736646633774,-500.0,9.984e-05,2]
[348588502,1736646633784,-500.0,9.984e-05,2]
[348588503,1736646633794,-500.0,9.984e-05,2]
[348588504,1736646633803,-502.92872267,9.984e-05,2]
[348588505,1736646633813,-500.0,9.984e-05,2]
[348588506,1736646633823,-500.0,9.984e-05,2]
[348588507,1736646633833,-500.0,9.984e-05,2]
[348588508,1736646633842,-500.0,9.984e-05,2]
[348588509,1736646633851,-229.37682167,9.984e-05,2]
[348588510,1736646633861,-502.94254987,9.984e-05,2]
[348588511,1736646633871,-500.0,9.984e-05,2]
[348588512,1736646633881,-500.0,9.984e-05,2]
[348588513,1736646633890,-500.0,9.984e-05,2]
[348588514,1736646633900,-502.22429244,9.984e-05,2]
[348588515,1736646633910,-500.0,9.984e-05,2]
[348588516,1736646633921,-500.0,9.984e-05,2]
[348588517,1736646633930,-500.0,9.984e-05,2]
[348588518,1736646633940,-500.0,9.984e-05,2]
[348588519,1736646633950,-500.0,9.984e-05,2]
[348588520,1736646633959,-500.0,9.984e-05,2]
[348588521,1736646633968,-500.0,9.984e-05,2]
[348588522,1736646633978,-500.0,9.984e-05,2]
[348588523,1736646633987,-500.0,9.984e-05,2]
[348588524,1736646633997,-500.0,9.984e-05,2]
[348588525,1736646634006,-586.19,9.984e-05,2]
[348588526,1736646634015,-500.0,9.984e-05,2]
[348588527,1736646634023,-500.0,9.984e-05,2]
[348588528,1736646634031,-500.0,9.984e-05,2]
[348588529,1736646634041,-500.0,9.984e-05,2]
[348588530,1736646634054,-500.0,9.984e-05,2]
[348588531,1736646634063,-500.0,9.984e-05,2]
[348588532,1736646634073,-500.0,9.984e-05,2]
[348588533,1736646634082,-500.0,9.984e-05,2]
[348588534,1736646634093,-500.0,9.984e-05,2]
[348588535,1736646634103,-500.0,9.984e-05,2]
[348588536,1736646634112,-500.0,9.984e-05,2]
[348588537,1736646634123,-500.0,9.984e-05,2]
[348588538,1736646634133,-632.28651729,9.984e-05,2]
[348588539,1736646634143,-500.0,9.984e-05,2]
[348588540,1736646634153,-500.0,9.984e-05,2]
[348588541,1736646634163,-500.0,9.984e-05,2]
[348588542,1736646634173,-500.0,9.984e-05,2]
[348588543,1736646634183,-500.0,9.984e-05,2]
[348588544,1736646634192,-500.0,9.984e-05,2]
[348588545,1736646634201,-607.05,9.984e-05,2]
[348588546,1736646634211,-500.0,9.984e-05,2]
[348588547,1736646634220,-527.5,9.984e-05,2]
[348588548,1736646634230,-500.0,9.984e-05,2]
[348588549,1736646634239,-500.0,9.984e-05,2]
[348588550,1736646634249,-737.55,9.984e-05,2]
[348588551,1736646634258,-500.0,9.984e-05,2]
[348588552,1736646634268,-500.0,9.984e-05,2]
[348588553,1736646634278,-500.0,9.984e-05,2]
[348588554,1736646634287,-500.0,9.984e-05,2]
[348588555,1736646634297,-500.0,9.984e-05,2]
[348588556,1736646634307,-500.0,9.984e-05,2]
[348588557,1736646634316,-500.0,9.984e-05,2]
[348588558,1736646634326,-500.0,9.984e-05,2]
[348588559,1736646634335,-566.52,9.984e-05,2]
[348588560,1736646634345,-500.0,9.984e-05,2]
[348588561,1736646634354,-500.0,9.984e-05,2]
[348588562,1736646634364,-500.0,9.984e-05,2]
[348588563,1736646634373,-587.76,9.984e-05,2]
[348588564,1736646634382,-500.0,9.984e-05,2]
[348588565,1736646634392,-500.0,9.984e-05,2]
[348588566,1736646634402,-500.0,9.984e-05,2]
[348588567,1736646634413,-500.0,9.984e-05,2]
[348588568,1736646634423,-500.0,9.984e-05,2]
[348588569,1736646634433,-500.0,9.984e-05,2]
[348588570,1736646634442,-500.0,9.984e-05,2]
[348588571,1736646634451,-500.0,9.984e-05,2]
[348588572,1736646634460,-500.0,9.984e-05,2]
[348588573,1736646634469,-500.0,9.984e-05,2]
[348588574,1736646634479,-500.0,9.984e-05,2]
[348588575,1736646634488,-500.0,9.984e-05,2]
[348588576,1736646634497,-500.0,9.984e-05,2]
[348588577,1736646634508,-500.0,9.984e-05,2]
[348588578,1736646634518,-500.0,9.984e-05,2]
[348588579,1736646634528,-500.0,9.984e-05,2]
[348588580,1736646634538,-500.0,9.984e-05,2]
[348588581,1736646634548,-500.0,9.984e-05,2]
[348588582,1736646634559,-500.0,9.984e-05,2]
[348588583,1736646634568,-630.18,9.984e-05,2]
[348588584,1736646634578,-500.0,9.984e-05,2]
[348588585,1736646634588,-515.35,9.984e-05,2]
[348588586,1736646634597,-500.0,9.984e-05,2]
[348588587,1736646634607,-500.0,9.984e-05,2]
[348588588,1736646634616,-500.0,9.984e-05,2]
[348588589,1736646634626,-500.0,9.984e-05,2]
[348588590,1736646634636,-500.0,9.984e-05,2]
[348588591,1736646634645,-530.57,9.984e-05,2]
[348588592,1736646634656,-500.0,9.984e-05,2]
[348588593,1736646634666,-500.0,9.984e-05,2]
[348588594,1736646634675,-500.0,9.984e-05,2]
[348588595,1736646634685,-677.32,9.984e-05,2]
[348588596,1736646634694,-614.97,9.984e-05,2]
[348588597,1736646634704,-3793.24,9.984e-05,2]
[348588598,1736646634713,-500.0,9.984e-05,2]
[348588599,1736646634722,-500.0,9.984e-05,2]
[348588600,1736646634732,-745.25,9.984e-05,2]
[348588601,1736646634741,-500.0,9.984e-05,2]
[348588602,1736646634750,-500.0,9.984e-05,2]
[348588603,1736646634759,-500.0,9.984e-05,2]
[348588604,1736646634769,-503.69183042,9.984e-05,2]
[348588605,1736646634778,-500.0,9.984e-05,2]
[348588606,1736646634787,-500.0,9.984e-05,2]
[348588607,1736646634797,-500.0,9.984e-05,2]
[348588608,1736646634806,-500.0,9.984e-05,2]
[348588609,1736646634815,-2252.25,9.984e-05,2]
[348588610,1736646634824,-500.0,9.984e-05,2]
[348588611,1736646635036,-500.0,9.984e-05,2]
[348588612,1736646635051,-500.0,9.984e-05,2]
[348588613,1736646635061,-500.0,9.984e-05,2]
[348588614,1736646635070,-500.0,9.984e-05,2]
[348588615,1736646635080,-266.78598762,9.984e-05,2]
[348588616,1736646635092,-500.0,9.984e-05,2]
[348588617,1736646635102,-500.0,9.984e-05,2]
[348588618,1736646635111,-500.0,9.984e-05,2]
[348588619,1736646635125,-507.11884557,9.984e-05,2]
[348588620,1736646635135,-500.0,9.984e-05,2]
[348588621,1736646635144,-500.0,9.984e-05,2]
[348588622,1736646635153,-500.0,9.984e-05,2]
[348588623,1736646635163,-500.0,9.984e-05,2]
[348588624,1736646635172,-738.46,9.984e-05,2]
[348588625,1736646635182,-500.0,9.984e-05,2]
[348588626,1736646635191,-500.0,9.984e-05,2]
[348588627,1736646635200,-217.54152314,9.984e-05,2]
[348588628,1736646635210,-500.0,9.984e-05,2]
[348588629,1736646635219,-661.76,9.984e-05,2]
[348588630,1736646635229,-500.0,9.984e-05,2]
[348588631,1736646635238,-500.0,9.984e-05,2]
[348588632,1736646635247,-500.0,9.984e-05,2]
[348588633,1736646635256,-500.0,9.984e-05,2]
[348588634,1736646635265,-838.09,9.984e-05,2]
[348588635,1736646635275,-1301.07,9.984e-05,2]
[348588636,1736646635284,-500.0,9.984e-05,2]
[348588637,1736646635294,-704.06,9.984e-05,2]
[348588638,1736646635303,-503.33538771,9.984e-05,2]
[348588639,1736646635312,-500.0,9.984e-05,2]
[348588640,1736646635321,-500.0,9.984e-05,2]
[348588641,1736646635331,-500.0,9.984e-05,2]
[348588642,1736646635341,-500.0,9.984e-05,2]
[348588643,1736646635352,-500.0,9.984e-05,2]
[348588644,1736646635363,-500.0,9.984e-05,2]
[348588645,1736646635372,-503.64174893,9.984e-05,2]
[348588646,1736646635382,-500.0,9.984e-05,2]
[348588647,1736646635392,-500.0,9.984e-05,2]
[348588648,1736646635401,-502.91956773,9.984e-05,2]
[348588649,1736646635412,-395.67891022,9.984e-05,2]
[348588650,1736646635422,-502.90334021,9.984e-05,2]
[348588651,1736646635431,-500.0,9.984e-05,2]
[348588652,1736646635440,-3329.73,9.984e-05,2]
[348588653,1736646635449,-500.0,9.984e-05,2]
[348588654,1736646635458,-500.0,9.984e-05,2]
[348588655,1736646635469,-500.0,9.984e-05,2]
[348588656,1736646635478,-574.18,9.984e-05,2]
[348588657,1736646635487,-500.0,9.984e-05,2]
[348588658,1736646635497,-500.0,9.984e-05,2]
[348588659,1736646635506,-500.0,9.984e-05,2]
[348588660,1736646635516,-500.0,9.984e-05,2]
[348588661,1736646635525,-500.0,9.984e-05,2]
[348588662,1736646635535,-500.0,9.984e-05,2]
[348588663,1736646635544,-500.0,9.984e-05,2]
[348588664,1736646635553,-500.0,9.984e-05,2]
[348588665,1736646635562,-500.0,9.984e-05,2]
[348588666,1736646635571,-627.0,9.984e-05,2]
[348588667,1736646635581,-500.0,9.984e-05,2]
[348588668,1736646635590,-500.0,9.984e-05,2]
[348588669,1736646635599,-500.0,9.984e-05,2]
[348588670,1736646635609,-500.0,9.984e-05,2]
[348588671,1736646635619,-500.0,9.984e-05,2]
[348588672,1736646635629,-1000.48,9.985e-05,2]
[348588673,1736646635639,-681.28,9.985e-05,2]
[348588674,1736646635648,-1516.47,9.985e-05,2]
[348588675,1736646635658,-500.0,9.985e-05,2]
[348588676,1736646635668,-500.0,9.985e-05,2]
[348588677,1736646635678,-500.0,9.985e-05,2]
[348588678,1736646635687,-365.64391722,9.985e-05,2]
[348588679,1736646635697,-500.0,9.985e-05,2]
[348588680,1736646635707,-500.0,9.985e-05,2]
[348588681,1736646635716,-500.0,9.985e-05,2]
[348588682,1736646635725,-500.0,9.985e-05,2]
[348588683,1736646635735,-500.0,9.985e-05,2]
[348588684,1736646635744,-506.66453814,9.985e-05,2]
[348588685,1736646635754,-500.0,9.985e-05,2]
[348588686,1736646635763,-500.0,9.985e-05,2]
[348588687,1736646635772,-500.0,9.985e-05,2]
[348588688,1736646635781,-3013.09,9.985e-05,2]
[348588689,1736646635790,-500.0,9.985e-05,2]
[348588690,1736646635800,-500.0,9.985e-05,2]
[348588691,1736646635810,-500.0,9.985e-05,2]
[348588692,1736646635819,-500.0,9.985e-05,2]
[348588693,1736646635829,-500.0,9.985e-05,2]
[348588694,1736646635838,-500.0,9.985e-05,2]
[348588695,1736646635847,-500.0,9.985e-05,2]
[348588696,1736646635857,-500.0,9.985e-05,2]
[348588697,1736646635866,-500.0,9.985e-05,2]
[348588698,1736646635876,-500.0,9.985e-05,2]
[348588699,1736646635885,-500.0,9.985e-05,2]
[348588700,1736646635894,-1489.71,9.985e-05,2]
[348588701,1736646635903,-575.11551701,9.985e-05,2]
[348588702,1736646635913,-582.74203017,9.985e-05,2]
[348588703,1736646635922,-500.0,9.985e-05,2]
[348588704,1736646635932,-503.67251919,9.985e-05,2]
[348588705,1736646635941,-472.61598088,9.985e-05,2]
[348588706,1736646635951,-500.0,9.985e-05,2]
[348588707,1736646635960,-862.23,9.985e-05,2]
[348588708,1736646635969,-500.0,9.985e-05,2]
[348588709,1736646635979,-500.0,9.985e-05,2]
[348588710,1736646635988,-500.0,9.985e-05,2]
[348588711,1736646635997,-500.0,9.985e-05,2]
[348588712,1736646636007,-2998.37,9.985e-05,2]
[348588713,1736646636016,-502.75252436,9.985e-05,2]
[348588714,1736646636025,-1076.3,9.985e-05,2]
[348588715,1736646636035,-500.0,9.985e-05,2]
[348588716,1736646636047,-789.49,9.985e-05,2]
[348588717,1736646636056,-500.0,9.985e-05,2]
[348588718,1736646636065,-1257.72715,9.985e-05,2]
[348588719,1736646636074,-505.09826138,9.985e-05,2]
[348588720,1736646636083,-2557.1,9.985e-05,2]
[348588721,1736646636094,-157.077828,9.985e-05,2]
[348588722,1736646636103,-7421.36,9.985e-05,2]
[348588723,1736646636112,-500.0,9.985e-05,2]
[348588724,1736646636122,-500.0,9.985e-05,2]
[348588725,1736646636132,-500.0,9.985e-05,2]
[348588726,1736646636141,-627.86306395,9.985e-05,2]
[348588727,1736646636150,-500.0,9.985e-05,2]
[348588728,1736646636159,-500.0,9.985e-05,2]
[348588729,1736646636169,-500.0,9.985e-05,2]
[348588730,1736646636179,-500.0,9.985e-05,2]
[348588731,1736646636188,-1264.947184,9.985e-05,2]
[348588732,1736646636197,-500.0,9.985e-05,2]
[348588733,1736646636206,-500.0,9.985e-05,2]
[348588734,1736646636216,-500.0,9.985e-05,2]
[348588735,1736646636225,-609.11,9.985e-05,2]
[348588736,1736646636234,-3094.85,9.985e-05,2]
[348588737,1736646636243,-500.0,9.985e-05,2]
[348588738,1736646636253,-361.45056988,9.985e-05,2]
[348588739,1736646636262,-500.0,9.985e-05,2]
[348588740,1736646636271,-500.0,9.985e-05,2]
[348588741,1736646636280,-500.0,9.985e-05,2]
[348588742,1736646636290,-500.0,9.985e-05,2]
[348588743,1736646636299,-972.68,9.985e-05,2]
[348588744,1736646636308,-500.0,9.985e-05,2]
[348588745,1736646636317,-500.0,9.985e-05,2]
[348588746,1736646636327,-500.0,9.985e-05,2]
[348588747,1736646636336,-500.0,9.985e-05,2]
[348588748,1736646636345,-1113.11,9.985e-05,2]
[348588749,1736646636354,-2104.81,9.985e-05,2]
[348588750,1736646636364,-500.0,9.985e-05,2]
[348588751,1736646636373,-536.31212692,9.985e-05,2]
[348588752,1736646636382,-500.0,9.985e-05,2]
[348588753,1736646636392,-504.08394716,9.985e-05,2]
[348588754,1736646636402,-500.0,9.985e-05,2]
[348588755,1736646636411,-500.0,9.985e-05,2]
[348588756,1736646636421,-3947.28,9.985e-05,2]